bitfinex/quotes_ETHUSD_20260314
["timestamp","ask_amount","ask_price","bid_price","bid_amount"]
[1773481661612,0.48656438,2072.4,2071.8,0.00110552]
[1773481662012,0.48656438,2072.4,2071.7,3.76153124]
[1773481662209,0.48656438,2072.4,2071.8,3.76153124]
[1773481662517,1.20638903,2072.3,2071.8,0.00143157]
[1773481664997,1.20638903,2072.3,2071.9,3.76153124]
[1773481665201,1.20638903,2072.3,2071.7,30.0]
[1773481666022,1.20638903,2072.3,2071.7,21.88018]
[1773481667023,0.55661855,2072.2,2071.8,3.76153124]
[1773481667214,1.20638903,2072.3,2071.8,3.76153124]
[1773481667414,1.20638903,2072.3,2071.9,3.76153124]
[1773481667610,1.20638903,2072.3,2071.7,3.76153124]
[1773481668012,0.55661855,2072.2,2071.7,3.76153124]
[1773481668702,0.55661855,2072.2,2072.0,0.0011]
[1773481669220,1.76312206,2072.2,2072.0,0.0011]
[1773481670526,0.55661855,2072.1,2071.8,0.0011]
[1773481671026,1.20685493,2071.5,2070.5,11.11894058]
[1773481671234,0.55661855,2071.4,2070.9,9.533725]
[1773481671398,0.55661855,2071.4,2070.5,1.385]
[1773481671399,0.55661855,2071.4,2070.6,14.097472]
[1773481671821,0.55661855,2071.4,2070.8,11.212098]
[1773481672023,0.55661855,2071.4,2070.7,20.976899]
[1773481672224,0.55661855,2071.4,2070.8,3.76153124]
[1773481672423,0.55661855,2071.4,2070.7,17.416002]
[1773481672643,0.55661855,2071.4,2069.9,0.34964777]
[1773481672644,0.76286829,2070.9,2069.9,0.34964777]
[1773481672840,0.55661855,2070.8,2070.0,30.0]
[1773481673143,0.55661855,2070.6,2070.0,30.0]
[1773481673448,1.76392508,2070.8,2070.2,0.09732498]
[1773481673735,0.55661855,2070.7,2070.2,0.09732498]
[1773481674034,0.55661855,2070.6,2069.6,1.30527638]
[1773481674734,0.55661855,2070.4,2069.3,0.09506244]
[1773481674952,1.20730653,2070.8,2069.7,30.09506244]
[1773481674953,0.56575598,2070.7,2069.7,30.09506244]
[1773481675104,1.77313548,2070.6,2070.0,0.07678759]
[1773481675306,0.56575598,2070.5,2069.8,1.20781613]
[1773481675630,0.56575598,2070.5,2069.8,1.28234724]
[1773481675930,0.56575598,2070.5,2069.9,0.07453111]
[1773481676519,0.56575598,2070.5,2069.8,14.819212]
[1773481676923,0.56575598,2070.5,2069.7,0.07228066]
[1773481677259,0.56575598,2070.3,2069.7,0.07228066]
[1773481677532,0.56575598,2070.3,2069.5,0.07003622]
[1773481677733,0.56575598,2070.3,2069.6,12.78247]
[1773481677929,0.56575598,2070.3,2069.7,0.07003622]
[1773481678403,0.56575598,2070.3,2069.3,1.27591902]
[1773481678606,0.56575598,2070.3,2069.4,0.06779778]
[1773481678803,0.56575598,2070.3,2069.6,0.06779778]
[1773481679447,0.56575598,2070.5,2069.8,0.06779778]
[1773481679652,1.77319559,2070.5,2069.8,0.06779778]
[1773481679854,0.56575598,2070.4,2069.7,1.20790452]
[1773481680051,0.56575598,2070.4,2069.7,1.27346984]
[1773481680423,0.56575598,2070.4,2069.5,0.06333881]
[1773481680751,0.56575598,2070.4,2069.3,0.06333881]
[1773481681157,0.56575598,2070.4,2070.0,0.0011]
[1773481681359,0.56575598,2070.4,2068.1,6.75015798]
[1773481681360,0.56520598,2070.0,2068.1,6.75015798]
[1773481681535,0.56520598,2069.8,2069.0,0.06221825]
[1773481681740,0.56520598,2069.8,2068.9,1.99269064]
[1773481681931,0.56520598,2069.8,2069.5,0.0011]
[1773481682269,0.56520598,2069.8,2068.0,0.32540334]
[1773481682270,0.07020598,2069.8,2068.0,0.32540334]
[1773481682560,0.54478747,2067.8,2064.9,1.77668386]
[1773481682765,0.54478747,2066.0,2065.0,9.001076]
[1773481682962,0.54478747,2066.3,2066.1,0.10507936]
[1773481683263,0.54478747,2066.3,2064.7,0.53964143]
[1773481683568,0.065536,2067.2,2064.7,0.53964143]
[1773481683569,0.54478747,2067.0,2065.4,2.336888]
[1773481683860,0.54478747,2067.0,2065.6,28.282371]
[1773481684059,0.54478747,2067.0,2065.8,28.282371]
[1773481684232,0.54478747,2067.0,2065.9,0.53964143]
[1773481684560,0.40601547,2067.0,2066.1,28.282371]
[1773481684756,0.40601547,2067.0,2066.1,12.603417]
[1773481684933,0.40601547,2067.0,2066.2,3.596774]
[1773481685137,0.40601547,2067.0,2066.2,3.097274]
[1773481685330,0.40601547,2067.0,2066.3,1.20989207]
[1773481685530,3.47853146,2067.2,2066.5,0.53964143]
[1773481685834,3.47853146,2067.2,2066.5,11.135369]
[1773481686137,4.02331893,2067.2,2066.6,3.097274]
[1773481686441,0.54478747,2067.1,2066.4,3.097274]
[1773481686943,0.54478747,2067.1,2066.5,3.097274]
[1773481687142,0.54478747,2067.1,2066.4,3.097274]
[1773481687358,0.54478747,2067.0,2066.2,1.20992183]
[1773481687541,0.54478747,2066.8,2066.2,1.20992183]
[1773481687742,0.54478747,2067.1,2066.3,3.097274]
[1773481688134,0.54478747,2067.1,2066.2,1.20992183]
[1773481688538,0.54478747,2067.1,2066.3,3.097274]
[1773481688860,3.47853146,2067.2,2066.3,3.097274]
[1773481689060,3.47853146,2067.2,2066.4,3.097274]
[1773481689237,3.47853146,2067.2,2066.2,3.15956326]
[1773481689238,3.47853146,2067.2,2066.3,3.63691543]
[1773481689637,3.47853146,2067.2,2066.4,4.30710752]
[1773481689957,0.54478747,2067.1,2066.3,3.097274]
[1773481690162,0.54478747,2067.1,2065.8,1.21018491]
[1773481690365,0.54478747,2067.1,2065.8,4.30745891]
[1773481690731,0.54478747,2067.1,2066.0,28.82201243]
[1773481690953,3.47853146,2067.2,2066.2,0.53964143]
[1773481691329,3.47853146,2067.2,2066.3,3.097274]
[1773481691531,3.47853146,2067.2,2066.4,30.24201243]
[1773481691740,3.47853146,2067.2,2066.7,1.2096579]
[1773481692339,3.47853146,2067.2,2066.8,3.097274]
[1773481692774,0.54478747,2067.1,2066.3,1.20989207]
[1773481693072,0.54478747,2067.1,2065.9,25.86637]
[1773481693655,0.54478747,2067.0,2066.1,1.21000919]
[1773481694567,0.001,2066.9,2066.1,1.21000919]
[1773481694748,0.001,2066.9,2066.2,3.097274]
[1773481695370,0.54578747,2066.9,2066.2,3.097274]
[1773481695867,0.001,2066.9,2066.4,1.20983352]
[1773481696443,0.60626158,2066.9,2066.1,1.21000919]
[1773481696842,0.60626158,2066.9,2066.2,3.097274]
[1773481697052,0.60626158,2066.9,2065.5,4.84127384]
[1773481697255,0.54478747,2065.9,2065.3,1.21157082]
[1773481697868,0.54478747,2065.9,2065.3,0.0011]
[1773481698066,0.54478747,2066.2,2065.3,0.0011]
[1773481698844,0.54478747,2066.2,2065.3,0.54074143]
[1773481699875,0.54478747,2066.2,2065.4,1.21041928]
[1773481700075,0.54478747,2066.8,2065.5,0.53964143]
[1773481700287,0.54478747,2066.8,2065.7,3.15564443]
[1773481700585,0.06010311,2066.7,2065.7,0.53964143]
[1773481700751,0.06048289,2066.7,2065.9,0.53964143]
[1773481701074,1.27064855,2066.9,2066.0,10.49297]
[1773481701272,1.95037243,2066.9,2066.0,10.49297]
[1773481701477,0.67972388,2066.8,2065.7,28.282371]
[1773481701674,0.06048289,2066.7,2065.9,0.71593928]
[1773481701973,1.27064357,2066.9,2066.1,1.21000919]
[1773481702170,1.95036745,2066.9,2066.1,1.21000919]
[1773481702350,0.67972388,2066.8,2066.1,1.21000919]
[1773481702558,0.06048289,2066.7,2066.1,1.21000919]
[1773481703349,0.06009433,2066.8,2066.1,1.21000919]
[1773481703552,0.06010311,2066.7,2066.1,1.21000919]
[1773481703759,0.001,2066.9,2066.1,1.21000919]
[1773481703970,0.06147411,2066.9,2066.1,15.110486]
[1773481704168,0.06147411,2066.9,2066.1,13.535486]
[1773481704776,0.06147411,2066.9,2066.1,13.206696]
[1773481704953,0.06147411,2066.9,2066.0,4.84003678]
[1773481705162,0.67972388,2066.8,2066.0,4.84003678]
[1773481705358,0.73982699,2066.7,2066.0,4.84003678]
[1773481705854,0.06010311,2066.7,2066.0,0.71593928]
[1773481706053,0.001,2066.9,2066.0,0.71593928]
[1773481706249,0.06147411,2066.9,2066.0,0.71593928]
[1773481707069,0.001,2066.5,2066.0,0.71593928]
[1773481707367,0.06147411,2066.9,2066.0,0.71593928]
[1773481708077,0.67972388,2066.8,2066.1,1.21000919]
[1773481708380,0.06010311,2066.7,2066.1,1.21000919]
[1773481709668,0.67972388,2066.8,2065.6,0.71593928]
[1773481709868,1.27103613,2066.9,2065.3,0.0011]
[1773481709869,0.67972388,2065.9,2065.3,0.0011]
[1773481710201,0.67972388,2066.2,2065.4,0.0011]
[1773481710727,0.67972388,2066.2,2065.3,0.0011]
[1773481711008,0.67972388,2066.2,2065.3,0.0022]
[1773481711413,0.67972388,2066.2,2065.4,0.0011]
[1773481712082,0.67972388,2066.2,2065.5,0.0011]
[1773481712278,0.67972388,2066.2,2065.4,0.0011]
[1773481712700,0.67972388,2066.2,2065.5,0.0011]
[1773481712997,0.67972388,2066.2,2065.4,0.0011]
[1773481713369,0.67972388,2066.5,2065.5,0.71703928]
[1773481713599,0.67972388,2066.5,2065.5,0.71593928]
[1773481713810,0.06009726,2066.4,2065.6,0.71703928]
[1773481714009,0.06009726,2066.4,2065.6,0.71593928]
[1773481714179,0.06009726,2066.4,2065.7,1.2102435]
[1773481714592,0.06009726,2066.4,2065.8,0.0011]
[1773481714994,1.8893326,2066.8,2065.9,0.71703928]
[1773481715183,0.06010018,2066.7,2065.9,0.71593928]
[1773481716490,1.26976846,2066.7,2066.0,1.21116776]
[1773481716696,0.06010018,2066.7,2066.1,0.0011]
[1773481717016,0.06010018,2066.7,2066.0,1.21006776]
[1773481717408,1.94948208,2066.7,2066.1,0.0011]
[1773481717901,0.73982406,2066.7,2066.2,0.0011]
[1773481718102,0.73982406,2066.7,2066.1,0.0011]
[1773481718302,1.94948208,2066.7,2066.0,1.21006776]
[1773481718684,0.67972388,2066.6,2065.6,1.21140209]
[1773481718894,0.67972388,2066.4,2065.6,1.21140209]
[1773481719193,0.73982406,2066.3,2065.7,0.0011]
[1773481719699,0.73982406,2066.3,2065.8,0.0011]
[1773481719896,0.73982406,2066.3,2065.6,0.0022]
[1773481720486,0.67972388,2066.1,2065.6,0.0022]
[1773481720822,0.74020092,2066.1,2065.6,0.0022]
[1773481721207,0.67972388,2066.1,2065.6,0.0022]
[1773481721996,0.67972388,2066.1,2065.7,0.0011]
[1773481722402,0.06007969,2066.0,2065.7,0.0011]
[1773481723228,0.06050338,2066.0,2065.8,0.0011]
[1773481723431,0.06007384,2066.3,2065.7,0.0011]
[1773481724001,0.06007384,2066.3,2065.8,0.0011]
[1773481724232,0.06007384,2066.3,2065.7,0.0011]
[1773481724731,0.06007384,2066.3,2065.8,0.0011]
[1773481724930,0.06049167,2066.4,2065.8,0.0011]
[1773481725133,0.06049167,2066.4,2065.9,0.71703928]
[1773481725298,0.06108555,2066.5,2065.9,0.71703928]
[1773481725501,1.95060439,2066.5,2066.0,0.0011]
[1773481725741,0.67972388,2066.4,2065.9,0.0011]
[1773481726035,0.06049167,2066.3,2065.8,0.0011]
[1773481727014,0.06049167,2066.3,2065.9,0.0011]
[1773481727308,1.27039635,2066.3,2065.8,0.0011]
[1773481727514,1.95012023,2066.3,2065.8,0.0011]
[1773481728435,0.73003017,2066.2,2065.8,0.0011]
[1773481728640,0.06008555,2066.1,2065.8,0.0011]
[1773481729212,2.00016526,2066.1,2065.8,0.0011]
[1773481729439,2.00016526,2066.1,2065.6,0.0011]
[1773481729649,0.10507936,2066.0,2065.6,0.0011]
[1773481729811,0.06049167,2065.9,2065.6,0.0011]
[1773481730011,0.10507936,2065.8,2065.6,0.0011]
[1773481730246,0.73003017,2066.1,2065.6,0.0011]
[1773481730447,0.06049167,2066.0,2065.6,0.0011]
[1773481730812,0.79052184,2066.0,2065.6,0.0011]
[1773481731259,0.79152184,2066.0,2065.6,0.0011]
[1773481731545,1.21012633,2065.9,2065.6,0.0011]
[1773481731961,0.8182005,2065.8,2065.3,0.0011]
[1773481732110,0.8182005,2065.8,2065.1,0.0011]
[1773481732422,0.75770883,2065.2,2064.2,0.7740885]
[1773481732612,0.75770883,2065.2,2064.3,4.84423477]
[1773481733527,0.75770883,2065.2,2064.2,0.05144491]
[1773481733528,0.75770883,2065.1,2064.2,0.05144491]
[1773481733728,0.75770883,2065.1,2064.2,1.21411191]
[1773481734130,0.75770883,2065.1,2064.2,2.03364532]
[1773481734325,1.21045959,2065.4,2064.2,2.03364532]
[1773481734326,0.75770883,2065.4,2064.3,0.7710885]
[1773481734567,0.75770883,2065.4,2064.4,0.04844022]
[1773481734844,0.75770883,2065.7,2064.6,0.7710885]
[1773481735048,0.001,2066.5,2064.5,28.282371]
[1773481735049,0.06049167,2065.6,2064.8,0.7710885]
[1773481735219,0.06049167,2065.9,2065.0,0.7710885]
[1773481735416,0.8182005,2065.9,2064.4,0.7710885]
[1773481735618,0.75770883,2065.8,2064.8,12.572223]
[1773481735859,0.06049167,2065.7,2064.8,12.572223]
[1773481736117,0.8182005,2065.7,2064.8,12.572223]
[1773481736340,0.06049167,2065.7,2064.9,0.81951699]
[1773481736614,0.8182005,2065.9,2064.9,0.7710885]
[1773481737449,0.06049167,2065.9,2064.9,0.7710885]
[1773481737649,0.04186269,2066.0,2065.4,16.284628]
[1773481737838,0.04186269,2066.0,2065.4,0.7710885]
[1773481739926,0.04186269,2066.0,2065.5,1.21036068]
[1773481740334,0.04186269,2066.0,2065.5,1.98144918]
[1773481741053,0.04186269,2066.0,2065.3,4.84187784]
[1773481741221,0.06049167,2065.9,2065.3,1.21047789]
[1773481741550,0.04186269,2066.0,2065.3,0.04841911]
[1773481741860,0.06049167,2065.9,2065.2,1.21050524]
[1773481742158,0.04186269,2066.0,2065.3,0.04841911]
[1773481742526,0.001,2066.5,2065.9,0.7710885]
[1773481742710,0.001,2066.9,2065.9,0.7710885]
[1773481742711,0.001,2066.9,2066.2,0.7710885]
[1773481742915,0.001,2066.9,2066.3,0.7710885]
[1773481744055,0.001,2066.9,2066.5,0.7710885]
[1773481744617,0.001,2066.9,2066.4,1.20983352]
[1773481745850,0.31485855,2067.5,2066.5,0.7710885]
[1773481746025,0.31485855,2067.5,2066.7,1.9807464]
[1773481746723,0.06045364,2067.7,2066.9,0.7710885]
[1773481746915,0.8181537,2068.0,2066.9,0.7710885]
[1773481747480,0.75770883,2068.0,2066.8,2.2580885]
[1773481747771,0.8181537,2068.0,2066.8,2.2580885]
[1773481747977,1.96666477,2067.9,2066.9,1.20954085]
[1773481748176,0.06045072,2067.8,2066.9,1.20954085]
[1773481748679,0.06045072,2067.8,2066.9,1.98062935]
[1773481749264,1.96654042,2068.2,2067.0,0.7710885]
[1773481749572,0.75770883,2068.2,2067.1,29.0534595]
[1773481749771,0.75770883,2068.2,2067.1,0.7710885]
[1773481750191,0.06044195,2068.1,2067.3,0.7710885]
[1773481750690,0.81815078,2068.1,2067.2,1.20936532]
[1773481752063,0.75770883,2067.9,2067.0,4.83786142]
[1773481752242,0.81815955,2067.8,2067.0,4.83786142]
[1773481753143,0.81815955,2067.8,2066.8,1.487]
[1773481753381,0.81815955,2067.8,2066.8,1.209566]
[1773481753561,0.75770883,2067.8,2066.8,1.9806545]
[1773481753879,0.81815955,2067.8,2066.9,0.7710885]
[1773481754072,0.81815955,2067.8,2067.0,1.20948234]
[1773481754373,0.06045072,2067.8,2067.0,1.20948234]
[1773481754576,1.96655276,2068.1,2067.1,0.7710885]
[1773481754754,0.75770883,2068.0,2067.1,0.7710885]
[1773481755075,0.81815662,2067.9,2067.0,1.20948234]
[1773481755382,0.81915662,2067.9,2067.0,1.20948234]
[1773481755945,0.75770883,2067.7,2066.9,1.20951084]
[1773481756178,0.75770883,2067.4,2066.6,1.20971644]
[1773481756376,0.75770883,2067.4,2066.6,1.25810509]
[1773481756377,0.06046534,2067.3,2066.6,1.25810509]
[1773481757869,0.06046534,2067.3,2066.6,1.20971644]
[1773481758270,2.02748607,2067.3,2066.6,1.20971644]
[1773481758453,0.81817417,2067.3,2066.6,1.20971644]
[1773481758893,2.02748217,2067.3,2066.5,1.21082916]
[1773481759056,0.75770883,2067.2,2066.5,1.21082916]
[1773481759254,0.75770883,2067.2,2066.5,1.25922015]
[1773481760773,1.20933542,2067.3,2066.5,1.25922015]
[1773481761282,1.20925923,2067.4,2066.5,1.96577783]
[1773481761490,1.96693187,2067.5,2066.6,0.70655768]
[1773481762070,0.06046241,2067.4,2066.6,0.70655768]
[1773481762503,1.92809111,2067.4,2066.7,1.2096579]
[1773481762797,0.71880832,2067.4,2066.7,1.25804421]
[1773481762983,1.98852933,2067.4,2066.7,1.2096579]
[1773481763774,0.71880832,2067.3,2066.7,1.2096579]
[1773481763970,0.06046826,2067.2,2066.6,1.20967546]
[1773481764175,0.77927658,2067.2,2066.5,1.21083477]
[1773481764576,1.92823215,2067.1,2066.5,0.0011]
[1773481765101,1.92823215,2067.1,2066.3,1.21099167]
[1773481765102,0.71880832,2067.0,2066.3,1.21099167]
[1773481765274,0.77928243,2067.0,2066.3,0.0011]
[1773481765702,0.77928243,2067.0,2066.3,1.21097601]
[1773481765945,0.71880832,2067.0,2066.3,1.21097601]
[1773481766200,0.77928243,2067.0,2066.3,1.21097601]
[1773481766700,1.92834917,2066.9,2066.3,0.0011]
[1773481767388,1.92834917,2066.9,2066.5,0.0011]
[1773481767871,0.06047996,2066.8,2066.5,0.0011]
[1773481768075,0.71880832,2066.9,2066.5,0.0011]
[1773481768286,1.92821537,2067.2,2066.5,0.0011]
[1773481768602,0.06047119,2067.1,2066.5,0.0011]
[1773481768803,0.001,2067.3,2066.5,0.70765768]
[1773481769104,0.001,2067.3,2066.6,0.75494633]
[1773481769699,0.001,2067.3,2066.6,0.70655768]
[1773481770292,0.001,2067.3,2066.7,0.70655768]
[1773481770494,0.001,2067.3,2066.5,0.0011]
[1773481770908,0.78027366,2067.3,2066.5,0.0011]
[1773481771904,0.71980832,2067.3,2066.5,0.04949099]
[1773481772207,0.71980832,2067.3,2066.5,0.75604867]
[1773481772411,0.001,2067.3,2066.7,0.70655768]
[1773481772578,0.001,2067.3,2066.8,1.91615706]
[1773481773397,0.001,2067.3,2066.9,0.70655768]
[1773481774198,4.83685087,2067.9,2066.9,0.70655768]
[1773481774199,1.20996071,2067.9,2066.9,0.70655768]
[1773481774511,0.001,2067.9,2067.0,28.282371]
[1773481774714,0.06144779,2067.9,2067.2,0.70655768]
[1773481776887,0.001,2067.9,2067.3,1.20930682]
[1773481777105,0.06144779,2067.9,2067.3,1.20930682]
[1773481777309,0.001,2067.9,2067.3,1.9158645]
[1773481778295,0.71880832,2067.7,2066.7,1.91619542]
[1773481778505,0.71880832,2067.5,2066.7,1.25802405]
[1773481778911,1.20924833,2067.4,2066.7,1.25802405]
[1773481779218,1.20924833,2067.4,2067.1,0.0011]
[1773481779915,0.77927366,2067.3,2066.9,0.0011]
[1773481781321,0.71880832,2067.3,2066.9,0.0011]
[1773481781523,0.06046826,2067.2,2066.9,0.0011]
[1773481782593,1.20928704,2067.4,2066.9,0.0011]
[1773481782818,1.20923367,2067.5,2066.9,0.0011]
[1773481786320,5.55543603,2067.6,2066.9,0.0011]
[1773481786321,1.92795354,2067.6,2066.9,0.04948163]
[1773481786706,0.71880832,2067.6,2066.9,0.04948163]
[1773481787226,1.2101152,2067.7,2066.9,0.75603931]
[1773481787416,0.06045656,2067.6,2066.9,0.70765768]
[1773481788207,0.75326299,2067.6,2066.9,0.0011]
[1773481788447,1.90199627,2067.5,2066.9,0.0011]
[1773481788630,0.06046241,2067.4,2066.9,0.0011]
[1773481789426,0.69280643,2067.5,2066.9,0.0011]
[1773481790399,1.90291575,2067.7,2067.0,0.68289207]
[1773481790699,1.90288423,2067.7,2067.0,0.73127136]
[1773481790900,0.06045656,2067.6,2067.0,0.73127136]
[1773481791512,0.06045656,2067.6,2067.1,0.0011]
[1773481791728,0.001,2067.3,2067.1,0.0011]
[1773481792521,0.001,2067.3,2067.1,1.21052383]
[1773481795406,0.001,2067.3,2067.1,0.0011]
[1773481802338,0.001,2067.3,2066.6,5.52345417]
[1773481802339,0.65843727,2067.2,2066.6,1.21076888]
[1773481802739,0.65843727,2067.2,2066.6,1.89426814]
[1773481802925,0.06146534,2067.3,2066.7,0.6955812]
[1773481803499,0.001,2067.3,2067.1,0.0011]
[1773481807339,0.001,2067.3,2067.1,0.68459926]
[1773481808120,1.21009257,2067.7,2067.1,0.68459926]
[1773481809246,0.001,2067.7,2067.3,0.68349926]
[1773481812565,0.001,2067.7,2067.4,1.20924833]
[1773481814173,0.001,2067.7,2067.4,1.89274759]
[1773481815163,0.001,2067.7,2067.5,0.68349926]
[1773481816936,0.001,2067.7,2067.6,1.20913136]
[1773481817586,0.001,2067.7,2067.6,1.89263062]
[1773481817739,0.71888214,2068.0,2067.4,1.89271545]
[1773481818140,0.71888214,2068.0,2067.3,1.20927372]
[1773481818358,0.71888214,2068.0,2067.2,1.892825]
[1773481818559,0.71888214,2068.0,2067.2,0.68349926]
[1773481818966,0.65843727,2067.8,2067.2,0.68349926]
[1773481819172,0.7068657,2067.7,2067.2,0.68349926]
[1773481819552,0.7068657,2067.7,2067.1,2.69549182]
[1773481819765,0.7068657,2067.7,2067.1,3.37899108]
[1773481820673,0.7068657,2067.7,2067.2,0.68349926]
[1773481821175,1.91594889,2067.7,2067.2,1.89283153]
[1773481821670,1.91594889,2067.7,2067.3,0.63646088]
[1773481821671,0.04842843,2067.7,2067.3,0.63646088]
[1773481821844,0.04842843,2067.7,2067.3,0.64851035]
[1773481823173,1.20901278,2067.9,2067.5,0.63646088]
[1773481824176,1.20894285,2068.0,2067.5,0.63646088]
[1773481824377,1.88046288,2068.1,2067.5,0.63646088]
[1773481825252,1.88044329,2068.1,2067.6,0.64849017]
[1773481825666,1.88044806,2068.1,2067.6,0.64849017]
[1773481826057,0.0484372,2068.0,2067.6,0.64849017]
[1773481826264,1.20884637,2068.1,2067.6,0.64849017]
[1773481826483,1.2088179,2068.2,2067.6,0.64849017]
[1773481826984,1.88036723,2068.3,2067.6,0.64849017]
[1773481827358,1.26925265,2068.2,2067.8,0.63646088]
[1773481827556,1.20881363,2068.2,2067.8,0.63646088]
[1773481827758,1.20881363,2068.2,2067.6,1.84555176]
[1773481827759,0.04844304,2068.1,2067.6,1.84555176]
[1773481828256,0.04844304,2068.1,2067.7,0.63646088]
[1773481828880,0.73203195,2068.2,2067.7,0.63646088]
[1773481829074,0.001,2067.8,2067.7,0.63646088]
[1773481829382,0.001,2067.8,2067.7,1.84553376]
[1773481829787,1.2087639,2068.3,2067.8,0.63646088]
[1773481830286,0.0604361,2068.3,2067.8,0.63646088]
[1773481830579,0.67160169,2068.2,2067.7,0.63646088]
[1773481830985,0.67160169,2068.2,2067.6,1.22112837]
[1773481830986,0.67160169,2068.5,2067.9,0.63646088]
[1773481831153,0.06043318,2068.4,2067.9,0.63646088]
[1773481831566,0.06043318,2068.4,2067.9,1.84536102]
[1773481831987,1.94070131,2068.4,2067.9,1.20890014]
[1773481832558,1.94070131,2068.4,2067.9,1.84536102]
[1773481833572,0.67160169,2068.3,2067.5,0.63646088]
[1773481833900,0.67160169,2068.3,2067.6,1.22115539]
[1773481833901,0.67160169,2068.1,2067.6,1.22115539]
[1773481834398,0.67160169,2068.1,2067.6,1.85761627]
[1773481834600,0.67160169,2068.1,2067.6,1.84559224]
[1773481834774,0.06043318,2068.0,2067.6,1.84559224]
[1773481836301,0.06043318,2068.0,2067.7,0.01202871]
[1773481836598,1.88046379,2068.1,2067.7,0.01202871]
[1773481837312,1.2088621,2068.1,2067.7,0.01202871]
[1773481837499,0.72004181,2068.0,2067.5,1.20914566]
[1773481837801,0.72004181,2068.0,2067.5,1.84560654]
[1773481838174,0.72004181,2068.0,2067.6,0.01203193]
[1773481838405,0.72004181,2068.0,2067.6,1.22114753]
[1773481838906,5.50626027,2068.4,2067.7,0.63646088]
[1773481839202,0.73203487,2068.3,2067.8,0.63646088]
[1773481839400,0.73203487,2068.3,2067.6,1.84557648]
[1773481839700,0.73203487,2068.3,2067.6,1.25748679]
[1773481840005,0.73203487,2068.3,2067.6,1.20912154]
[1773481840304,0.73203487,2068.3,2067.7,0.0011]
[1773481840503,0.67260169,2068.1,2067.7,0.0011]
[1773481840706,0.06043318,2068.0,2067.7,0.0011]
[1773481843020,0.73303487,2068.1,2067.7,0.04946291]
[1773481844257,1.9418787,2068.1,2067.7,0.0011]
[1773481845456,0.67160169,2068.0,2067.7,0.0011]
[1773481846022,0.67160169,2068.0,2067.5,0.0011]
[1773481847650,1.20895594,2067.9,2067.5,0.0011]
[1773481847849,0.67160169,2067.8,2067.5,0.0011]
[1773481849668,0.67160169,2067.8,2067.2,1.21042109]
[1773481849669,0.67160169,2067.8,2067.2,0.0011]
[1773481849839,0.65746974,2067.6,2067.2,0.0011]
[1773481850158,0.65746974,2067.8,2067.2,0.69370286]
[1773481852260,0.61803688,2067.7,2067.3,1.20930682]
[1773481853344,0.67847006,2067.9,2067.4,0.60940978]
[1773481853659,0.61803688,2067.8,2067.5,0.0011]
[1773481853855,0.61903688,2067.6,2067.5,0.0011]
[1773481854363,0.61903688,2067.6,2067.3,0.0011]
[1773481855538,1.82722672,2067.5,2067.3,0.0011]
[1773481856046,1.20918984,2067.5,2067.3,0.0011]
[1773481856247,4.83585096,2067.9,2067.3,0.0011]
[1773481856248,0.61803688,2068.3,2067.4,0.60940978]
[1773481856456,0.61803688,2068.3,2067.3,0.0011]
[1773481856767,0.61803688,2068.3,2067.3,0.04947227]
[1773481856966,0.61803688,2068.1,2067.3,0.0011]
[1773481857157,0.61803688,2068.1,2067.3,0.04947227]
[1773481857655,0.61803688,2067.9,2067.3,0.04947227]
[1773481857856,0.61803688,2067.9,2067.3,1.25877429]
[1773481859169,0.01048614,2067.5,2067.3,1.25877429]
[1773481860240,0.01048614,2067.5,2067.3,0.04947227]
[1773481860953,0.01048614,2067.5,2067.3,0.0011]
[1773481870275,0.01048614,2067.5,2067.3,0.61050978]
[1773481870574,0.01048614,2067.5,2067.4,0.65777971]
[1773481870774,0.62852302,2067.5,2067.3,0.0011]
[1773481871151,0.01048614,2067.5,2067.3,1.81976258]
[1773481871855,0.01048614,2067.5,2067.4,0.60940978]
[1773481878085,0.001,2067.6,2067.4,1.81865811]
[1773481878265,0.61803688,2067.8,2067.5,0.60940978]
[1773481879262,0.61803688,2067.8,2067.5,1.81858717]
[1773481879764,0.61803688,2067.8,2067.5,0.60940978]
[1773481880457,1.8269947,2067.9,2067.5,0.60940978]
[1773481881358,0.64831833,2067.8,2067.5,0.65165026]
[1773481881666,0.64831833,2067.8,2067.3,1.86202877]
[1773481882074,0.64831833,2067.8,2067.3,1.21037851]
[1773481882275,0.64831833,2067.8,2067.4,0.65165026]
[1773481884386,0.64831833,2067.7,2067.4,1.86086642]
[1773481885016,6.893,2068.5,2067.4,1.86086642]
[1773481885017,0.64831833,2068.5,2067.7,0.65165026]
[1773481885168,0.64831833,2068.4,2067.5,0.65165026]
[1773481886290,0.64831833,2068.3,2067.7,0.65165026]
[1773481888367,0.64831833,2068.3,2067.8,1.86066467]
[1773481888567,0.64831833,2068.3,2067.9,0.65165026]
[1773481889971,0.001,2068.2,2067.9,0.65165026]
[1773481890294,0.64931833,2068.2,2067.9,0.65165026]
[1773481890668,0.64931833,2068.2,2067.9,1.86057933]
[1773481890874,0.001,2068.2,2068.0,0.65165026]
[1773481891069,0.64831833,2068.6,2068.0,0.65165026]
[1773481891801,4.83362777,2068.9,2068.0,0.65165026]
[1773481891802,0.64831833,2069.1,2068.5,1.41959911]
[1773481892096,0.64831833,2069.1,2068.5,0.65165026]
[1773481892300,0.64831833,2069.1,2068.0,0.76794885]
[1773481892301,0.64831833,2069.1,2068.3,0.65165026]
[1773481893071,0.64831833,2068.9,2068.4,1.86031396]
[1773481893570,0.64831833,2068.9,2068.5,0.65165026]
[1773481893870,1.85657841,2069.1,2068.5,0.65165026]
[1773481894270,0.64831833,2069.0,2068.5,0.65165026]
[1773481895208,0.64831833,2069.0,2068.6,0.65165026]
[1773481895588,2.75740695,2069.3,2068.6,0.65165026]
[1773481895898,0.64831833,2069.3,2068.9,0.65165026]
[1773481896106,0.64831833,2069.6,2068.9,0.65165026]
[1773481897271,0.64831833,2069.6,2069.1,0.65165026]
[1773481897483,1.785,2069.9,2069.6,0.65165026]
[1773481897682,0.64831833,2070.2,2069.6,0.65165026]
[1773481897992,0.64831833,2070.6,2069.8,0.65165026]
[1773481898195,0.64831833,2070.6,2070.0,0.65165026]
[1773481899094,0.64831833,2070.9,2070.1,0.65165026]
[1773481899297,0.64831833,2070.7,2070.1,1.8592831]
[1773481899493,0.64831833,2070.7,2070.1,1.85931498]
[1773481899920,0.64831833,2070.7,2070.2,0.65165026]
[1773481902021,0.64831833,2070.6,2069.8,1.85949642]
[1773481902317,0.64831833,2070.6,2069.9,0.65165026]
[1773481902803,0.64831833,2070.8,2069.9,0.65165026]
[1773481904311,0.64831833,2070.7,2070.1,0.65165026]
[1773481904513,0.64831833,2070.7,2070.0,1.20772946]
[1773481905014,0.64831833,2070.7,2069.7,5.48326259]
[1773481905205,0.64831833,2070.7,2069.8,0.65165026]
[1773481905407,0.76794885,2070.7,2069.7,4.83161233]